bitfinex/quotes_BTCUSD_20241222
["timestamp","ask_amount","ask_price","bid_price","bid_amount"]
[1734905707902,0.05165272,94733.0,94721.0,0.15]
[1734905708238,0.21109,94746.0,94722.0,0.1013084]
[1734905708443,0.00016193,94749.0,94724.0,0.15]
[1734905708444,0.05165272,94740.0,94724.0,0.15]
[1734905708591,0.05165272,94740.0,94727.0,0.211133]
[1734905708792,0.05165272,94740.0,94734.0,0.211117]
[1734905708998,0.00016193,94749.0,94742.0,0.211099]
[1734905709199,0.00016193,94749.0,94743.0,0.2513084]
[1734905709400,0.00016193,94749.0,94721.0,0.22235187]
[1734905709401,0.05823576,94745.0,94721.0,0.01120687]
[1734905709575,0.05823576,94745.0,94692.0,0.1]
[1734905709576,0.00016193,94749.0,94742.0,0.211098]
[1734905709929,0.05165272,94747.0,94739.0,0.211106]
[1734905710139,0.00016193,94749.0,94739.0,0.211106]
[1734905710353,0.05839769,94749.0,94738.0,0.211108]
[1734905710558,0.05165272,94747.0,94724.0,0.211138]
[1734905710838,0.21109,94746.0,94725.0,0.2577454]
[1734905711046,0.10988848,94743.0,94742.0,0.001]
[1734905711253,0.05823576,94741.0,94732.0,0.211121]
[1734905711461,0.00016193,94749.0,94738.0,0.001]
[1734905711667,0.00016193,94749.0,94739.0,0.1013084]
[1734905711880,0.05823576,94747.0,94739.0,0.3124144]
[1734905712745,0.00016193,94749.0,94739.0,0.3124144]
[1734905713172,0.00016193,94749.0,94740.0,0.15]
[1734905713379,0.00016193,94749.0,94746.0,0.21109]
[1734905713591,0.00016193,94749.0,94748.0,0.361086]
[1734905713799,0.00016193,94749.0,94748.0,0.4623944]
[1734905714012,0.00016193,94749.0,94748.0,0.5639234]
[1734905714424,0.00016193,94749.0,94748.0,0.61227068]
[1734905714637,0.00782881,94749.0,94748.0,1.21303492]
[1734905714849,0.05165272,94794.0,94763.0,0.04834728]
[1734905715065,0.05165272,94794.0,94782.0,0.211009]
[1734905715289,0.05165272,94798.0,94784.0,0.211006]
[1734905715496,0.05165272,94798.0,94785.0,0.1013084]
[1734905715711,0.00060998,94800.0,94787.0,0.15]
[1734905715924,0.00060998,94800.0,94789.0,0.15]
[1734905716123,0.00060998,94800.0,94791.0,0.15]
[1734905716333,0.00060998,94800.0,94790.0,0.1013084]
[1734905716334,0.00060998,94800.0,94793.0,0.15]
[1734905716558,0.00060998,94800.0,94790.0,0.29712949]
[1734905716559,0.00060998,94800.0,94797.0,0.15]
[1734905716776,0.00060998,94800.0,94799.0,0.15]
[1734905716981,0.00060998,94800.0,94799.0,0.4556714]
[1734905717246,0.00060998,94800.0,94799.0,0.4348924]
[1734905717458,0.05165272,94824.0,94799.0,0.4348924]
[1734905717459,0.05165272,94824.0,94809.0,0.210949]
[1734905717673,0.01461899,94815.0,94810.0,0.2513084]
[1734905718307,0.01461899,94815.0,94812.0,0.15]
[1734905718537,0.01461899,94815.0,94813.0,0.1013084]
[1734905719202,0.05823576,94819.0,94814.0,0.210939]
[1734905719416,0.05823576,94819.0,94815.0,0.1013084]
[1734905719607,0.210898,94833.0,94816.0,0.210934]
[1734905719746,0.1,94860.0,94817.0,0.1013084]
[1734905719950,0.05823576,94826.0,94820.0,0.210923]
[1734905720153,0.05823576,94836.0,94822.0,0.15]
[1734905720404,0.05823576,94833.0,94827.0,0.15]
[1734905720703,0.05823576,94833.0,94818.0,0.210929]
[1734905720704,0.00470392,94835.0,94829.0,0.15]
[1734905720921,0.00033297,94844.0,94843.0,0.360874]
[1734905721137,0.00033297,94844.0,94843.0,0.4621824]
[1734905721561,0.00033297,94844.0,94843.0,0.5621824]
[1734905721779,0.210816,94870.0,94859.0,0.15]
[1734905721990,0.210824,94866.0,94859.0,0.15]
[1734905722410,0.210813,94871.0,94864.0,0.1]
[1734905722615,0.210825,94866.0,94859.0,0.149737]
[1734905722879,0.0786,94938.0,94871.0,0.1]
[1734905723111,0.01648211,94968.0,94924.0,0.1]
[1734905723112,0.00131684,94953.0,94924.0,0.1]
[1734905723317,0.00060934,94928.0,94926.0,0.1]
[1734905723520,0.210688,94927.0,94926.0,0.1]
[1734905723775,0.00060934,94928.0,94925.0,0.00740895]
[1734905723989,0.00060934,94928.0,94907.0,0.1]
[1734905723990,0.210688,94927.0,94907.0,0.1]
[1734905724194,0.210688,94927.0,94908.0,0.1]
[1734905724376,0.1013084,94927.0,94910.0,0.1]
[1734905725072,0.210693,94925.0,94904.0,0.1]
[1734905725293,0.00060934,94928.0,94916.0,0.1]
[1734905725498,0.00060934,94928.0,94927.0,0.1]
[1734905725712,0.00060934,94928.0,94927.0,0.2013084]
[1734905726996,0.00060934,94928.0,94927.0,0.001]
[1734905727200,0.00060934,94928.0,94927.0,0.3513084]
[1734905727431,0.00060934,94928.0,94927.0,1.8130824]
[1734905727635,0.00060934,94928.0,94927.0,1.3097754]
[1734905727829,0.00060934,94928.0,94927.0,1.2083114]
[1734905728042,0.00060934,94928.0,94927.0,0.9744274]
[1734905728265,0.00060934,94928.0,94927.0,0.5619964]
[1734905728861,0.00060934,94928.0,94927.0,2.16920239]
[1734905729035,0.00060934,94928.0,94927.0,2.64035339]
[1734905729238,0.0001712,94939.0,94934.0,0.1]
[1734905729447,0.00033287,94939.0,94938.0,0.460663]
[1734905729646,0.00033287,94939.0,94938.0,1.4486644]
[1734905729842,0.00033287,94939.0,94938.0,0.8073714]
[1734905730111,0.00033287,94939.0,94938.0,0.8092904]
[1734905730551,0.00833287,94939.0,94938.0,0.9092904]
[1734905730752,0.00033287,94939.0,94938.0,0.9092904]
[1734905730974,0.421082,94994.0,94970.0,0.1]
[1734905731182,0.21070264,94994.0,94972.0,0.15]
[1734905731352,0.21070264,94994.0,94948.0,0.210639]
[1734905731353,0.00016164,94994.0,94984.0,0.210561]
[1734905731551,0.00016164,94994.0,94985.0,0.2513084]
[1734905731753,0.00016164,94994.0,94932.0,0.536]
[1734905731754,0.210569,94981.0,94970.0,0.1]
[1734905731957,0.00016164,94994.0,94971.0,0.15]
[1734905732160,0.210556,94987.0,94973.0,0.1]
[1734905732359,0.00016164,94994.0,94982.0,0.1]
[1734905732595,0.21070064,94994.0,94982.0,0.1]
[1734905732801,0.21070064,94994.0,94983.0,0.15]
[1734905732802,0.00016164,94994.0,94983.0,0.15]
[1734905733221,0.00016164,94994.0,94988.0,0.1]
[1734905733332,0.00016164,94994.0,94985.0,0.15]
[1734905733532,0.210543,94993.0,94985.0,0.15]
[1734905733758,0.210556,94987.0,94973.0,0.1]
[1734905733977,0.210541,94993.0,94983.0,0.005]
[1734905734185,0.210442,95038.0,94999.0,0.023]
[1734905734390,0.21047,95026.0,95004.0,0.273]
[1734905734595,0.21047,95026.0,95004.0,0.3513084]
[1734905734817,0.210484,95019.0,95004.0,0.123]
[1734905735019,0.210486,95019.0,95004.0,0.1]
[1734905735858,0.210497,95013.0,94999.0,0.1]
[1734905736303,0.210497,95013.0,95000.0,0.1]
[1734905736502,0.210498,95013.0,94999.0,0.1]
[1734905736712,0.210486,95019.0,94998.0,0.1]
[1734905736973,0.210486,95019.0,94998.0,0.2013084]
[1734905737179,0.0182861,95005.0,95002.0,0.1]
[1734905737438,0.0142861,95005.0,95004.0,0.15]
[1734905737617,0.0142861,95005.0,95004.0,0.3513084]
[1734905737747,0.0142861,95005.0,95004.0,0.5618254]
[1734905739681,0.0142861,95005.0,95004.0,0.2513084]
[1734905739891,0.0142861,95005.0,95004.0,0.1]
[1734905740102,0.0142861,95005.0,95004.0,0.259]
[1734905740753,0.0142861,95005.0,95004.0,0.159]
[1734905741174,0.0142861,95005.0,95004.0,0.259]
[1734905741889,0.0142861,95005.0,95004.0,0.159]
[1734905742089,0.0142861,95005.0,95004.0,0.259]
[1734905742443,0.0142861,95005.0,95004.0,0.159]
[1734905742680,0.0142861,95005.0,95004.0,0.009]
[1734905743682,0.0142861,95005.0,94988.0,0.1]
[1734905743683,0.0142861,95005.0,94989.0,0.15]
[1734905743906,0.0142861,95005.0,94988.0,0.1]
[1734905744183,0.0142861,95005.0,94990.0,0.1]
[1734905744404,0.210521,95002.0,94990.0,0.1]
[1734905745797,0.421043,95002.0,94990.0,0.1]
[1734905746194,0.421043,95002.0,94988.0,0.1]
[1734905746446,0.210521,95002.0,94988.0,0.1]
[1734905746645,0.210541,94993.0,94990.0,0.003]
[1734905747068,0.421083,94993.0,94990.0,0.003]
[1734905747495,0.421083,94993.0,94989.0,0.15]
[1734905747725,0.421083,94993.0,94990.0,0.003]
[1734905747931,0.210541,94993.0,94990.0,0.003]
[1734905748552,0.0144567,95005.0,94995.0,0.1]
[1734905748758,0.0144567,95005.0,94993.0,0.21054]
[1734905748759,0.0144567,95005.0,95002.0,0.25]
[1734905749006,0.0144567,95005.0,95003.0,0.1]
[1734905749614,0.0144567,95005.0,95004.0,0.210517]
[1734905749829,0.0144567,95005.0,95003.0,0.1]
[1734905750033,0.0164567,95005.0,95001.0,0.210523]
[1734905750237,0.0144567,95005.0,94998.0,0.210529]
[1734905750448,0.0144567,95005.0,94992.0,0.15]
[1734905750449,0.0164567,95005.0,94992.0,0.15]
[1734905751072,0.0144567,95005.0,94992.0,0.15]
[1734905751262,0.21051,95007.0,94987.0,0.210553]
[1734905751466,0.21051,95007.0,94970.0,0.29553978]
[1734905751467,0.1013084,95007.0,94960.0,0.29553978]
[1734905751680,0.002,95008.0,94955.0,0.210625]
[1734905751681,0.210558,94986.0,94955.0,0.210625]
[1734905751880,0.10262446,94985.0,94943.0,0.210651]
[1734905752086,0.210561,94984.0,94952.0,0.01363028]
[1734905752288,0.3118694,94984.0,94946.0,0.210644]
[1734905752461,0.3118694,94984.0,94950.0,0.210635]
[1734905752665,0.3118694,94984.0,94945.0,0.210646]
[1734905753212,0.3118694,94984.0,94983.0,0.00116164]
[1734905753419,0.3118694,94984.0,94983.0,0.00016164]
[1734905753843,0.3128694,94984.0,94983.0,0.00016164]
[1734905754250,0.3118694,94984.0,94983.0,0.00016164]
[1734905755709,0.3118694,94984.0,94948.0,0.0109779]
[1734905755710,0.210599,94968.0,94948.0,0.0109779]
[1734905755909,0.00131622,94967.0,94948.0,0.0109779]
[1734905756139,0.210616,94960.0,94948.0,0.0109779]
[1734905756825,0.210624,94956.0,94948.0,0.0109779]
[1734905757773,0.1,94977.0,94948.0,0.0109779]
[1734905757978,0.210614,94961.0,94948.0,0.0109779]
[1734905758197,0.00131638,94960.0,94948.0,0.0109779]
[1734905758378,0.210617,94959.0,94948.0,0.0109779]
[1734905758788,0.421234,94959.0,94948.0,0.0109779]
[1734905758980,0.00016146,94984.0,94950.0,0.2528]
[1734905759262,0.00016146,94984.0,94983.0,0.210563]
[1734905759446,0.00016146,94984.0,94983.0,0.4618714]
[1734905759650,0.00016146,94984.0,94983.0,0.7442484]
[1734905759793,0.00016146,94984.0,94983.0,0.6933554]
[1734905760146,0.00016146,94984.0,94983.0,0.6566634]
[1734905760554,4.6e-07,94984.0,94983.0,0.7796634]
[1734905760763,4.6e-07,94984.0,94983.0,0.6736714]
[1734905760963,4.6e-07,94984.0,94983.0,0.5736714]
[1734905762087,0.0001708,95023.0,95003.0,0.210519]
[1734905762296,0.0001708,95023.0,95003.0,0.360519]
[1734905763577,0.0001708,95023.0,95003.0,0.369519]
[1734905764667,0.0001708,95023.0,95003.0,0.4708274]
[1734905764768,0.0001708,95023.0,95019.0,0.360484]
[1734905764979,0.0001708,95023.0,95019.0,0.4617924]
[1734905765176,0.00033275,95020.0,95019.0,0.4617924]
[1734905765411,0.00033275,95020.0,95019.0,0.360484]
[1734905766024,0.02065983,95103.0,95068.0,0.048398]
[1734905766341,0.0488,95147.0,95085.0,0.210337]
[1734905766342,0.0777,95109.0,95085.0,0.210337]
[1734905766529,0.00070951,95089.0,95087.0,0.210333]
[1734905766738,0.00070951,95089.0,95088.0,0.2997064]
[1734905767551,0.00070951,95089.0,95088.0,0.8399034]
[1734905767763,0.01292566,95125.0,95124.0,0.360251]
[1734905768008,0.01308729,95125.0,95124.0,0.5099574]
[1734905768168,0.00016163,95125.0,95124.0,0.7075144]
[1734905768376,0.000107,95175.0,95124.0,0.7075144]
[1734905768377,0.000107,95175.0,95151.0,0.048398]
[1734905768572,0.000107,95175.0,95170.0,0.210149]
[1734905768781,0.00026845,95175.0,95173.0,0.15]
[1734905768983,0.00026845,95175.0,95174.0,0.2109138]
[1734905769192,0.00026845,95175.0,95174.0,0.048398]
[1734905769396,0.00026845,95175.0,95174.0,0.41191519]
[1734905769599,0.00016145,95175.0,95174.0,0.15]
[1734905769809,0.00012145,95175.0,95174.0,0.30047905]
[1734905770003,0.00012145,95175.0,95174.0,0.198398]
[1734905770208,7e-05,95186.0,95185.0,0.258515]
[1734905770482,0.00060784,95186.0,95185.0,0.5098234]
[1734905771021,0.00060784,95186.0,95185.0,0.8599934]
[1734905771448,0.051602,95278.0,95206.0,0.048398]
[1734905771653,0.051602,95248.0,95220.0,0.29553978]
[1734905771878,0.1,95243.0,95220.0,0.29553978]
[1734905772080,0.1,95234.0,95208.0,0.048398]
[1734905772279,0.07186411,95243.0,95200.0,0.29553978]
[1734905772280,0.1,95223.0,95200.0,0.048398]
[1734905772537,0.1,95223.0,95180.0,0.29553978]
[1734905772538,0.1,95215.0,95196.0,0.048398]
[1734905772824,0.10262117,95222.0,95188.0,0.048398]
[1734905772825,0.10262129,95214.0,95188.0,0.048398]
[1734905773082,0.10262129,95214.0,95185.0,0.8254783]
[1734905773083,0.10262129,95214.0,95200.0,0.29553978]
[1734905773287,0.00131296,95226.0,95201.0,0.00077215]
[1734905773459,0.0468,95243.0,95201.0,0.00077215]
[1734905773460,0.001,95223.0,95216.0,0.29553978]
[1734905773662,0.001,95223.0,95191.0,0.210102]
[1734905773663,0.001,95223.0,95208.0,0.048398]
[1734905773880,0.21007,95206.0,95200.0,0.00016129]
[1734905774086,0.21008,95202.0,95200.0,0.00016129]
[1734905774317,0.1026215,95201.0,95200.0,0.00016129]
[1734905774720,0.210053,95214.0,95200.0,0.00016129]
[1734905774950,0.210071,95206.0,95200.0,0.00016129]
[1734905775164,0.20861554,95206.0,95183.0,0.00077216]
[1734905775390,0.41884868,95206.0,95183.0,0.10208056]
[1734905775589,0.210092,95197.0,95182.0,0.01431714]
[1734905775764,0.210092,95197.0,95180.0,0.15]
[1734905775765,0.210092,95197.0,95180.0,0.00077236]
[1734905775995,0.1013084,95205.0,95167.0,0.00077236]
[1734905776212,0.210102,95192.0,95168.0,0.1013084]
[1734905776470,0.210092,95196.0,95169.0,0.1507725]
[1734905776667,0.00131318,95195.0,95170.0,0.00077261]
[1734905776876,0.210077,95203.0,95170.0,0.00077261]
[1734905776877,0.210077,95203.0,95170.0,0.10208101]
[1734905777089,0.210081,95201.0,95171.0,0.55359]
[1734905777297,0.210077,95203.0,95171.0,0.55359]
[1734905777298,0.210077,95203.0,95172.0,0.235612]
[1734905777505,0.210077,95203.0,95176.0,0.15]
[1734905777712,0.29553978,95200.0,95138.0,0.1]
[1734905777918,0.210117,95186.0,95146.0,0.023]
[1734905778149,0.210117,95186.0,95147.0,0.33389607]
[1734905778364,0.21012,95184.0,95149.0,0.023]
[1734905778574,0.21009,95197.0,95160.0,0.21017]
[1734905778780,0.02112221,95205.0,95169.0,0.001]
[1734905778781,0.21011,95188.0,95169.0,0.001]
[1734905778995,0.1013084,95188.0,95169.0,0.001]
[1734905779226,0.21013,95180.0,95154.0,0.210184]
[1734905779504,0.210132,95178.0,95156.0,0.210181]
[1734905779741,0.210132,95178.0,95157.0,0.00077304]
[1734905779987,0.210131,95179.0,95157.0,0.00077304]
[1734905780239,0.210131,95179.0,95157.0,0.21095104]
[1734905780479,0.210131,95179.0,95158.0,0.15]
[1734905780684,0.210131,95179.0,95159.0,0.00077292]
[1734905780902,0.10262174,95178.0,95147.0,0.15]
[1734905781122,0.00016114,95206.0,95151.0,0.1]
[1734905781339,0.00016114,95206.0,95173.0,0.1013084]
[1734905781564,0.00016114,95206.0,95180.0,0.29553978]
[1734905781789,0.00016114,95206.0,95201.0,0.21008]
[1734905782014,0.00016114,95206.0,95201.0,0.420161]
[1734905782441,0.00816114,95206.0,95197.0,0.21009]
[1734905782658,0.00816114,95206.0,95185.0,0.15]
[1734905782875,0.210074,95205.0,95187.0,0.15]
[1734905783096,0.00131295,95204.0,95201.0,0.008]
[1734905783328,0.1013084,95205.0,95201.0,0.008]
[1734905783329,0.10262143,95203.0,95201.0,0.008]
[1734905783538,0.10262143,95203.0,95169.0,0.00077245]
[1734905783748,0.29553978,95200.0,95197.0,0.008]
[1734905783957,0.10262172,95199.0,95197.0,0.008]
[1734905784172,0.31270772,95199.0,95197.0,0.008]
[1734905784388,0.52279372,95199.0,95197.0,0.008]
[1734905784820,0.210143,95174.0,95161.0,0.0007727]
[1734905785027,0.2013084,95199.0,95155.0,0.0007727]
[1734905785242,0.1,95197.0,95152.0,0.1013084]
[1734905785477,0.1013084,95196.0,95156.0,0.1013084]
[1734905785691,0.07832674,95193.0,95152.0,0.1]
[1734905785911,0.07832674,95193.0,95133.0,0.210231]
[1734905785912,0.210166,95163.0,95148.0,0.1]
[1734905786123,0.210145,95172.0,95161.0,0.008]
[1734905786330,0.210148,95171.0,95152.0,0.02326196]
[1734905786544,0.210128,95180.0,95156.0,0.001]
[1734905786751,0.39684818,95190.0,95156.0,0.001]
[1734905786752,0.1013084,95190.0,95164.0,0.02167326]
[1734905786986,0.210122,95183.0,95165.0,0.00105069]
[1734905787264,0.210122,95183.0,95157.0,0.3114844]
[1734905787265,0.210142,95174.0,95157.0,0.1013084]
[1734905787516,0.210165,95164.0,95152.0,0.0222111]
[1734905787715,0.210165,95164.0,95152.0,0.00053784]
[1734905787917,0.00054038,95163.0,95152.0,0.00053784]
[1734905788126,0.210165,95163.0,95152.0,0.00053784]
[1734905788335,0.00054038,95162.0,95152.0,0.00053784]
[1734905788545,0.420353,95158.0,95152.0,0.00053784]
[1734905788757,0.29553978,95170.0,95152.0,0.00053784]
[1734905788758,0.00054038,95157.0,95152.0,0.00053784]
[1734905788970,0.00054038,95160.0,95152.0,0.00253784]
[1734905789181,0.210146,95172.0,95152.0,0.00053784]
[1734905789596,0.210146,95172.0,95152.0,0.00153784]
[1734905789803,0.210125,95181.0,95162.0,0.02167326]
[1734905790009,0.21013,95179.0,95163.0,0.00105071]
[1734905790422,0.00054038,95178.0,95163.0,0.02167326]
[1734905790631,0.210123,95182.0,95163.0,0.00105071]
[1734905790834,0.210128,95180.0,95161.0,0.02167326]
[1734905791047,0.21067038,95179.0,95159.0,0.02167326]
[1734905791257,0.210132,95178.0,95154.0,0.15]
[1734905791430,0.210151,95170.0,95154.0,0.15]
[1734905791639,0.210137,95176.0,95156.0,0.02167326]
[1734905791772,0.210137,95176.0,95152.0,0.00053784]
[1734905791773,0.10184878,95175.0,95152.0,0.00353784]
[1734905791975,0.210171,95161.0,95152.0,0.00353784]
[1734905792186,0.210171,95161.0,95152.0,0.00053784]
[1734905792391,0.210174,95159.0,95152.0,0.00053784]
[1734905792593,0.00054038,95158.0,95152.0,0.00053784]
[1734905792792,0.00054038,95174.0,95164.0,0.210162]
[1734905793010,0.258663,95210.0,95152.0,0.00053784]
[1734905793011,0.00054038,95189.0,95172.0,0.02167326]
[1734905793216,0.1013084,95189.0,95172.0,0.02167326]
[1734905793521,0.00054038,95188.0,95172.0,0.02167326]
[1734905793678,0.210114,95186.0,95172.0,0.02167326]
[1734905793883,0.210117,95185.0,95172.0,0.02167326]
[1734905794293,0.21011,95189.0,95172.0,0.02167326]
[1734905794491,0.00054038,95188.0,95172.0,0.02167326]
[1734905794686,0.210112,95187.0,95172.0,0.02167326]
[1734905794904,0.210117,95185.0,95172.0,0.02167326]
[1734905795304,0.210112,95187.0,95172.0,0.02167326]
[1734905795623,0.21065538,95186.0,95172.0,0.02367326]
[1734905795961,0.21065538,95186.0,95159.0,0.02175866]
[1734905795962,0.1013084,95185.0,95159.0,0.02175866]
[1734905796329,0.210135,95177.0,95172.0,0.001]
[1734905796446,0.210139,95175.0,95159.0,8.54e-05]
[1734905796647,0.00054038,95174.0,95159.0,8.54e-05]
[1734905797058,0.210139,95175.0,95159.0,8.54e-05]
[1734905797265,0.00054038,95174.0,95159.0,8.54e-05]
[1734905798111,0.210156,95168.0,95159.0,8.54e-05]
[1734905798313,0.210168,95162.0,95159.0,8.54e-05]
[1734905798541,0.210172,95160.0,95159.0,8.54e-05]
[1734905799199,0.210145,95172.0,95159.0,0.0060854]
[1734905799412,0.210152,95170.0,95159.0,8.54e-05]
[1734905799791,0.00054038,95169.0,95159.0,0.0030854]
[1734905800220,0.210154,95168.0,95159.0,8.54e-05]
[1734905800352,0.00054038,95167.0,95159.0,8.54e-05]
[1734905800552,0.210134,95177.0,95159.0,8.54e-05]
[1734905800769,0.10184878,95176.0,95159.0,8.54e-05]
[1734905801591,0.29553978,95170.0,95159.0,0.0010854]
[1734905801852,0.29553978,95170.0,95159.0,8.54e-05]
[1734905801853,0.210165,95164.0,95159.0,8.54e-05]
[1734905802070,0.00054038,95163.0,95159.0,8.54e-05]
[1734905802264,0.210143,95173.0,95159.0,0.0010854]
[1734905802483,0.210148,95171.0,95159.0,8.54e-05]
[1734905802687,0.00054038,95170.0,95159.0,8.54e-05]
[1734905802890,0.00254038,95170.0,95159.0,8.54e-05]
[1734905803203,0.00054038,95170.0,95159.0,8.54e-05]
[1734905803422,0.1013084,95170.0,95159.0,8.54e-05]
[1734905803647,0.210168,95162.0,95159.0,8.54e-05]
[1734905803844,0.210172,95160.0,95159.0,8.54e-05]
[1734905804254,0.210168,95162.0,95159.0,8.54e-05]
[1734905804488,0.210172,95160.0,95159.0,8.54e-05]
[1734905804874,0.3114804,95160.0,95159.0,8.54e-05]
[1734905805321,0.210158,95167.0,95159.0,8.54e-05]
[1734905805528,0.210167,95163.0,95159.0,8.54e-05]
[1734905805748,0.00054038,95162.0,95159.0,8.54e-05]
[1734905805952,0.21017,95161.0,95159.0,8.54e-05]
[1734905806128,0.210158,95167.0,95159.0,8.54e-05]
[1734905806363,0.00054038,95166.0,95159.0,8.54e-05]
[1734905806587,0.00054038,95166.0,95159.0,0.0030854]
[1734905806792,0.210161,95165.0,95159.0,8.54e-05]
[1734905806970,0.210171,95161.0,95159.0,8.54e-05]
[1734905807127,0.00054038,95160.0,95159.0,8.54e-05]
[1734905807328,0.10184878,95160.0,95159.0,8.54e-05]
[1734905807959,0.18017552,95160.0,95159.0,8.54e-05]
[1734905808499,0.20317552,95160.0,95159.0,8.54e-05]
[1734905808685,0.29553978,95130.0,95110.0,0.09187837]
[1734905808894,0.210263,95119.0,95112.0,0.01113883]
[1734905809251,0.29553978,95140.0,95112.0,0.01113883]
[1734905809443,0.10184878,95139.0,95112.0,0.01113883]
[1734905809671,0.29553978,95130.0,95112.0,0.01113883]
[1734905809871,0.210276,95114.0,95112.0,0.01113883]
[1734905810073,0.210276,95114.0,95112.0,0.02013883]
[1734905810074,0.00054038,95113.0,95112.0,0.02013883]
[1734905810270,0.00054038,95113.0,95112.0,0.00916145]
[1734905810271,0.00600021,95113.0,95112.0,0.00916145]
[1734905811336,0.20647121,95114.0,95112.0,0.00016145]
[1734905811565,0.1013084,95113.0,95112.0,0.00016145]
[1734905812159,0.20647121,95114.0,95112.0,0.00016145]
[1734905812387,0.001,95113.0,95112.0,0.00816145]
[1734905812819,0.210264,95119.0,95112.0,0.00016145]
[1734905813228,0.003,95113.0,95112.0,0.00016145]
[1734905814411,0.210264,95119.0,95112.0,0.00016145]
[1734905814875,0.210273,95115.0,95112.0,0.00316145]
[1734905815089,0.21019,95152.0,95119.0,0.02167326]
[1734905815281,0.0482,95177.0,95119.0,0.12167326]
[1734905815282,0.1013084,95151.0,95119.0,0.12167326]
[1734905815414,0.210211,95143.0,95120.0,0.02167326]
[1734905815618,0.420422,95143.0,95125.0,0.02167326]
[1734905815821,0.1013084,95151.0,95125.0,0.02167326]
[1734905816028,0.210209,95144.0,95125.0,0.02167326]
[1734905816223,0.1013084,95151.0,95125.0,0.12167326]
[1734905816451,0.3115014,95151.0,95129.0,0.02167326]
[1734905816804,0.210194,95150.0,95129.0,0.02167326]
[1734905817012,0.5216964,95150.0,95129.0,0.02167326]
[1734905817216,0.1013084,95150.0,95132.0,0.02167326]
[1734905817417,0.210174,95159.0,95134.0,0.210229]
[1734905817659,0.29553978,95170.0,95133.0,0.0461]
[1734905817660,0.210186,95154.0,95133.0,0.0461]
[1734905817862,0.009,95143.0,95133.0,0.0461]
[1734905818488,0.1013084,95158.0,95126.0,0.02167326]
[1734905818691,0.023,95149.0,95132.0,0.001]
[1734905818932,0.210229,95135.0,95124.0,0.02167326]
[1734905819140,0.210229,95135.0,95121.0,0.0828]
[1734905819310,0.210229,95134.0,95133.0,0.004]
[1734905819528,0.210229,95134.0,95112.0,0.09212522]
[1734905819529,0.210262,95120.0,95112.0,0.09212522]
[1734905819738,0.210234,95132.0,95112.0,0.09212522]
[1734905819897,0.210218,95139.0,95112.0,0.09212522]
[1734905820097,0.210235,95132.0,95112.0,0.09212522]
[1734905820503,0.210235,95132.0,95112.0,0.00024685]
[1734905820700,0.1013084,95138.0,95112.0,0.00024685]
[1734905820902,0.210223,95137.0,95112.0,0.00024685]
[1734905821206,0.210242,95129.0,95112.0,0.00024685]
[1734905821612,0.1013084,95136.0,95112.0,0.00024685]
[1734905821783,0.023,95135.0,95112.0,0.00024685]
[1734905821984,0.3115384,95134.0,95112.0,0.00024685]
[1734905822370,0.3115384,95134.0,95113.0,0.02167326]
[1734905822771,0.02105347,95176.0,95129.0,0.02167326]
[1734905822978,0.210162,95165.0,95148.0,0.02167326]
[1734905823493,0.21015,95170.0,95148.0,0.02167326]
[1734905823693,0.210082,95201.0,95168.0,0.210152]
[1734905823891,0.0001708,95200.0,95174.0,0.1]
[1734905824128,0.0001708,95200.0,95187.0,0.21011]
[1734905824320,0.09310547,95189.0,95188.0,0.98057566]
[1734905824721,0.00053751,95189.0,95188.0,0.98057566]
[1734905825181,0.00053751,95189.0,95188.0,0.73655866]
[1734905825357,0.0001708,95200.0,95199.0,0.48175926]
[1734905825519,0.09256796,95222.0,95205.0,0.02167326]
[1734905825724,0.09256796,95222.0,95221.0,0.27167326]
[1734905825923,0.09753868,95222.0,95221.0,0.58301866]
[1734905826176,0.00497072,95222.0,95219.0,0.1]
[1734905826406,0.00497072,95222.0,95213.0,0.1]
[1734905826628,0.0001612,95222.0,95215.0,0.02167326]
[1734905827202,0.0001612,95222.0,95221.0,0.004]
[1734905827403,0.0001612,95222.0,95210.0,0.210061]
[1734905827404,0.0001612,95222.0,95202.0,0.1]
[1734905827626,0.1013084,95221.0,95201.0,0.09375916]
[1734905827834,0.1013084,95221.0,95215.0,0.004]
[1734905828039,0.233046,95217.0,95201.0,0.09375916]
[1734905828243,0.023,95210.0,95201.0,0.09375916]
[1734905828457,0.023,95208.0,95186.0,0.09375916]
[1734905828606,0.1013084,95207.0,95186.0,0.09375916]
[1734905828785,0.210095,95195.0,95186.0,0.09375916]
[1734905829011,0.210086,95199.0,95186.0,0.09375916]
[1734905829210,0.1013084,95198.0,95186.0,0.09375916]
[1734905829535,0.1060375,95198.0,95171.0,0.1]
[1734905829744,0.210108,95189.0,95169.0,0.09375916]
[1734905830010,0.1013084,95188.0,95186.0,0.008]
[1734905830126,0.233112,95187.0,95186.0,0.008]
[1734905830336,0.21015,95170.0,95161.0,0.09375916]
[1734905830916,0.420325,95165.0,95161.0,0.09375916]
[1734905831180,0.420325,95165.0,95161.0,0.09429667]
[1734905831440,0.210165,95163.0,95161.0,0.09429667]
[1734905831900,0.00473617,95162.0,95161.0,0.00053751]
[1734905832303,0.210105,95191.0,95161.0,0.10184591]
[1734905832430,0.210125,95182.0,95165.0,0.1]
[1734905832634,0.210114,95186.0,95162.0,0.12167326]
[1734905832837,0.00472132,95181.0,95162.0,0.12167326]
[1734905833037,0.1013084,95181.0,95162.0,0.02167326]
[1734905833403,0.210145,95173.0,95162.0,0.02167326]
[1734905833588,0.0047252,95180.0,95161.0,0.00053751]
[1734905833589,0.1013084,95172.0,95161.0,0.00053751]
[1734905833880,0.210166,95163.0,95161.0,0.00053751]
[1734905834384,0.00472193,95162.0,95161.0,0.00053751]
[1734905834820,0.10603033,95162.0,95161.0,0.00053751]
[1734905835041,0.10603033,95162.0,95140.0,0.10793541]
[1734905835042,0.210189,95153.0,95140.0,0.10793541]
[1734905835232,0.29553978,95160.0,95140.0,0.00016145]
[1734905835366,0.2102,95148.0,95140.0,0.00016145]
[1734905835568,0.210187,95153.0,95140.0,0.00016145]
[1734905835767,0.00470499,95147.0,95140.0,0.00016145]
[1734905835980,0.210211,95143.0,95140.0,0.00016145]
[1734905836397,0.210203,95146.0,95140.0,0.00016145]
[1734905836600,0.210148,95171.0,95146.0,0.1]